bitfinex-derivatives/quotes_SOLF0:USTF0_20241101
["timestamp","ask_amount","ask_price","bid_price","bid_amount"]
[1730424458336,2.9838,167.8,167.76,5.9444]
[1730424459431,6.41576687,167.81,167.77,2.9842]
[1730424461032,6.41576687,167.84,167.78,6.41576687]
[1730424461829,9.39886687,167.84,167.8,2.9836]
[1730424462037,9.39886687,167.84,167.78,6.41576687]
[1730424462235,6.41576687,167.82,167.76,9.37576687]
[1730424462430,9.39916687,167.82,167.77,2.9841]
[1730424462835,6.41576687,167.82,167.76,9.37576687]
[1730424463432,6.41576687,167.82,167.79,2.9838]
[1730424464132,6.41576687,167.84,167.78,6.41576687]
[1730424464441,9.39876687,167.84,167.8,2.9837]
[1730424466637,2.9833,167.83,167.8,2.9837]
[1730424467036,2.9833,167.83,167.78,6.41576687]
[1730424467443,2.9833,167.83,167.79,2.9838]
[1730424468138,2.9833,167.83,167.78,6.41576687]
[1730424468334,6.41576687,167.84,167.78,6.41576687]
[1730424468639,6.41576687,167.84,167.78,9.37576687]
[1730424469234,9.39876687,167.84,167.78,9.37576687]
[1730424469637,6.41576687,167.84,167.78,9.37576687]
[1730424471138,10.75596687,167.86,167.79,6.41576687]
[1730424471835,1.2558,167.87,167.83,2.9831]
[1730424471836,7.67156687,167.87,167.83,2.9831]
[1730424472350,10.65416687,167.87,167.83,2.9831]
[1730424472646,7.67156687,167.87,167.83,2.9831]
[1730424473142,6.41576687,167.87,167.85,2.9828]
[1730424473341,2.9825,167.88,167.85,2.9828]
[1730424474141,9.39786687,167.89,167.86,2.9826]
[1730424474644,9.39786687,167.89,167.83,2.96]
[1730424475947,6.41576687,167.89,167.83,2.96]
[1730424476247,2.9823,167.88,167.85,2.9828]
[1730424477746,9.39796687,167.89,167.85,2.9828]
[1730424478245,9.39796687,167.89,167.86,2.9826]
[1730424478547,9.39776687,167.9,167.86,2.9826]
[1730424478847,6.41576687,167.9,167.87,2.9824]
[1730424480248,2.9823,167.88,167.84,6.41576687]
[1730424480443,6.41576687,167.89,167.85,2.9]
[1730424480744,2.9826,167.87,167.85,2.9]
[1730424484041,2.9826,167.87,167.84,2.9829]
[1730424485151,2.9826,167.87,167.79,3.8955]
[1730424485152,6.41576687,167.87,167.8,9.31576687]
[1730424485850,6.41576687,167.87,167.82,2.9833]
[1730424485851,2.9827,167.86,167.82,2.9833]
[1730424487355,2.983,167.84,167.8,12.29936687]
[1730424487653,6.41576687,167.87,167.8,9.31576687]
[1730424488047,2.9832,167.84,167.8,12.29936687]
[1730424488653,2.9832,167.84,167.81,2.9835]
[1730424491447,6.41576687,167.87,167.81,2.9835]
[1730424491642,6.41576687,167.91,167.85,6.41576687]
[1730424492963,2.9819,167.9,167.86,2.9825]
[1730424493854,8.35230038,167.9,167.85,6.41576687]
[1730424494054,6.41576687,167.91,167.85,6.41576687]
[1730424495659,6.41576687,167.9,167.84,2.9]
[1730424496152,2.9824,167.88,167.85,6.41576687]
[1730424496460,16.08196725,167.93,167.86,6.41576687]
[1730424496764,7.72966687,167.93,167.86,6.41576687]
[1730424496965,2.9816,167.92,167.88,2.9823]
[1730424497660,2.9818,167.91,167.88,2.9823]
[1730424497966,7.72966687,167.93,167.88,2.9823]
[1730424498155,2.9817,167.92,167.88,2.9823]
[1730424498466,7.72966687,167.93,167.88,2.9823]
[1730424499258,2.9818,167.91,167.88,2.9823]
[1730424500772,7.72966687,167.93,167.88,2.9823]
[1730424500974,2.9816,167.92,167.88,2.9823]
[1730424501572,9.39716687,167.93,167.88,6.41576687]
[1730424501882,8.36625122,167.94,167.88,6.41576687]
[1730424502064,6.41576687,167.95,167.88,6.41576687]
[1730424502468,2.9814,167.94,167.9,2.9818]
[1730424502665,2.9814,167.94,167.88,6.41576687]
[1730424502666,6.41576687,167.95,167.88,9.31576687]
[1730424503174,2.9814,167.94,167.9,2.9819]
[1730424503567,11.34750411,167.94,167.9,2.9819]
[1730424503964,2.9814,167.94,167.9,2.9819]
[1730424504970,2.9814,167.93,167.9,2.9819]
[1730424505169,2.9814,167.93,167.89,2.9821]
[1730424506378,6.41576687,167.95,167.88,9.31576687]
[1730424506572,2.9812,167.94,167.9,2.9819]
[1730424506974,11.34730411,167.94,167.9,2.9819]
[1730424507170,2.9812,167.94,167.9,2.9819]
[1730424509974,2.9812,167.94,167.9,6.41576687]
[1730424510278,2.9812,167.94,167.91,2.9817]
[1730424511980,2.9812,167.94,167.9,9.39766687]
[1730424515083,2.9812,167.94,167.91,2.9816]
[1730424516006,8.36610411,167.97,167.93,6.41576687]
[1730424516173,67.44073076,168.01,167.85,2.6469]
[1730424516174,1.3216,168.01,167.95,6.41576687]
[1730424516486,1.3216,168.01,167.97,6.41576687]
[1730424516685,2.9802,168.0,167.97,6.41576687]
[1730424516879,9.67067682,168.01,167.97,6.41576687]
[1730424517384,9.67067682,168.01,167.95,6.41576687]
[1730424517385,7.73736687,168.01,167.95,6.41576687]
[1730424518085,2.9809,167.97,167.95,6.41576687]
[1730424518380,6.41576687,167.97,167.92,6.41576687]
[1730424518576,2.981,167.96,167.91,2.84]
[1730424518777,6.41576687,167.96,167.91,2.84]
[1730424519184,2.9814,167.94,167.9,6.41576687]
[1730424519485,6.41576687,167.96,167.89,9.25576687]
[1730424519678,2.9812,167.94,167.89,9.25576687]
[1730424520079,2.9812,167.94,167.89,12.23786687]
[1730424520685,2.9815,167.93,167.89,12.23786687]
[1730424521390,6.41576687,167.96,167.89,9.25576687]
[1730424521590,2.9817,167.92,167.89,6.41576687]
[1730424528896,2.9815,167.93,167.89,9.39776687]
[1730424529094,2.9815,167.93,167.9,6.41576687]
[1730424529799,6.41576687,167.96,167.9,6.41576687]
[1730424529988,2.9811,167.95,167.9,9.39756687]
[1730424530496,2.9811,167.95,167.91,2.9816]
[1730424532092,2.981,167.96,167.92,6.41576687]
[1730424532294,9.67067682,168.01,167.92,6.41576687]
[1730424532295,6.41576687,167.99,167.92,6.41576687]
[1730424532999,2.9807,167.97,167.92,6.41576687]
[1730424533194,6.41576687,167.99,167.92,6.41576687]
[1730424533591,2.9811,167.95,167.92,6.41576687]
[1730424537994,2.9814,167.93,167.9,6.41576687]
[1730424538191,2.84,168.0,167.9,6.41576687]
[1730424538397,6.41576687,167.96,167.9,6.41576687]
[1730424538597,2.9815,167.93,167.9,6.41576687]
[1730424539702,6.41576687,167.96,167.89,6.41576687]
[1730424539902,9.21576687,167.96,167.89,6.41576687]
[1730424540295,2.9817,167.92,167.89,6.41576687]
[1730424540490,9.21576687,167.96,167.89,6.41576687]
[1730424540699,1.349,167.95,167.89,6.41576687]
[1730424540997,6.41576687,167.92,167.86,6.41576687]
[1730424541190,4.39455369,167.95,167.86,6.41576687]
[1730424541191,6.41576687,167.91,167.86,6.41576687]
[1730424541700,2.9825,167.87,167.86,6.41576687]
[1730424542495,6.41576687,167.91,167.86,6.41576687]
[1730424542496,2.9823,167.88,167.86,6.41576687]
[1730424543400,6.41576687,167.91,167.86,6.41576687]
[1730424543997,2.9824,167.88,167.86,6.41576687]
[1730424544405,6.41576687,167.91,167.86,6.41576687]
[1730424544800,2.9824,167.88,167.86,6.41576687]
[1730424545307,6.41576687,167.91,167.86,6.41576687]
[1730424545602,2.9826,167.87,167.84,6.41576687]
[1730424550007,9.21576687,167.92,167.86,6.41576687]
[1730424550507,2.9822,167.89,167.84,9.39856687]
[1730424550707,6.41576687,167.91,167.84,6.41576687]
[1730424551207,6.41576687,167.9,167.85,6.41576687]
[1730424551995,2.9826,167.87,167.83,9.39896687]
[1730424552202,6.41576687,167.9,167.83,6.41576687]
[1730424552601,2.9828,167.86,167.83,6.41576687]
[1730424553308,6.41576687,167.9,167.83,6.41576687]
[1730424553509,2.9826,167.86,167.83,6.41576687]
[1730424556403,2.9831,167.84,167.81,6.41576687]
[1730424556807,6.41576687,167.87,167.79,6.41576687]
[1730424557711,6.41576687,167.87,167.81,9.39926687]
[1730424558413,2.983,167.85,167.81,9.39926687]
[1730424559417,6.41576687,167.87,167.81,9.39926687]
[1730424559418,2.9831,167.84,167.81,9.39926687]
[1730424560212,2.9833,167.83,167.8,6.41576687]
[1730424562311,2.9834,167.82,167.8,6.41576687]
[1730424563520,6.41576687,167.85,167.8,6.41576687]
[1730424565033,2.9831,167.84,167.81,6.41576687]
[1730424566931,6.41576687,167.87,167.81,9.39926687]
[1730424567133,2.9829,167.85,167.81,6.41576687]
[1730424567632,2.9829,167.85,167.81,9.39926687]
[1730424569334,2.9829,167.85,167.81,6.41576687]
[1730424569537,2.9829,167.85,167.82,2.9833]
[1730424570232,2.983,167.84,167.81,9.39926687]
[1730424571135,7.67566687,167.88,167.81,6.41576687]
[1730424571435,7.67566687,167.88,167.83,2.9831]
[1730424571837,2.9827,167.86,167.82,2.9833]
[1730424576743,7.67566687,167.88,167.82,2.9833]
[1730424576947,2.9828,167.85,167.82,2.9833]
[1730424577138,7.67566687,167.88,167.82,2.9833]
[1730424578247,2.9828,167.86,167.82,2.9833]
[1730424580740,2.9826,167.87,167.82,2.9833]
[1730424580941,7.67566687,167.88,167.82,2.9833]
[1730424581440,2.9828,167.86,167.82,2.9833]
[1730424583243,7.67566687,167.88,167.82,2.9833]
[1730424583449,2.9828,167.85,167.82,2.9833]
[1730424584452,6.41576687,167.87,167.81,6.41576687]
[1730424584656,2.9831,167.84,167.81,6.41576687]
[1730424587244,2.9831,167.84,167.81,9.39926687]
[1730424595449,6.41576687,167.87,167.81,6.41576687]
[1730424597252,2.9831,167.84,167.81,6.41576687]
[1730424600650,2.9831,167.84,167.8,9.39946687]
[1730424601247,2.9828,167.85,167.8,6.41576687]
[1730424601445,6.41576687,167.85,167.8,6.41576687]
[1730424601649,6.41576687,167.85,167.79,2.9839]
[1730424601852,2.9838,167.8,167.77,2.72]
[1730424602846,1.3385,167.87,167.75,6.41576687]
[1730424602847,2.9843,167.77,167.75,6.41576687]
[1730424603048,6.41576687,167.82,167.76,6.41576687]
[1730424603342,2.72,167.81,167.76,6.41576687]
[1730424603554,2.9838,167.8,167.76,6.41576687]
[1730424603757,2.72,167.81,167.76,6.41576687]
[1730424605158,2.72,167.81,167.74,6.41576687]
[1730424605159,6.41576687,167.8,167.74,6.41576687]
[1730424606051,2.9842,167.78,167.74,9.40036687]
[1730424607952,2.9843,167.77,167.74,9.40036687]
[1730424608349,2.9841,167.78,167.74,9.40036687]
[1730424609250,2.9839,167.79,167.74,9.40036687]
[1730424609456,6.41576687,167.8,167.74,9.40036687]
[1730424610257,2.9842,167.77,167.74,9.40036687]
[1730424611954,2.9841,167.78,167.74,9.40036687]
[1730424612660,6.41576687,167.8,167.74,6.41576687]
[1730424612864,6.41576687,167.8,167.73,6.41576687]
[1730424614250,2.9845,167.76,167.73,6.41576687]
[1730424614758,2.9844,167.77,167.73,9.40066687]
[1730424615158,6.41576687,167.8,167.73,9.40066687]
[1730424615752,2.9846,167.75,167.73,6.41576687]
[1730424617164,6.41576687,167.78,167.73,6.41576687]
[1730424618358,2.9848,167.75,167.73,6.41576687]
[1730424625662,6.41576687,167.74,167.67,6.41576687]
[1730424626571,2.985,167.73,167.69,2.9855]
[1730424627067,6.41576687,167.74,167.69,2.9855]
[1730424627670,2.9853,167.72,167.68,2.9858]
[1730424627967,6.41576687,167.71,167.65,9.07486687]
[1730424628167,2.74,167.73,167.67,6.41576687]
[1730424628168,6.41576687,167.72,167.67,6.41576687]
[1730424628466,2.74,167.72,167.68,6.41576687]
[1730424628857,2.74,167.72,167.68,9.40156687]
[1730424629062,2.74,167.72,167.68,6.41576687]
[1730424629364,9.15576687,167.74,167.68,6.41576687]
[1730424629568,2.9851,167.73,167.69,2.9857]
[1730424630165,2.9851,167.72,167.69,2.9857]
[1730424630372,9.15576687,167.74,167.68,9.40156687]
[1730424631072,2.985,167.73,167.69,2.9857]
[1730424632062,9.15576687,167.74,167.68,9.40156687]
[1730424632063,2.9852,167.72,167.68,9.40156687]
[1730424633866,1.3013,167.75,167.7,6.41576687]
[1730424633867,6.41576687,167.75,167.7,6.41576687]
[1730424635174,6.41576687,167.77,167.71,6.41576687]
[1730424635875,6.41576687,167.77,167.73,2.9848]
[1730424636469,9.40006687,167.77,167.74,2.9848]
[1730424636977,9.39966687,167.79,167.74,2.9848]
[1730424637477,6.41576687,167.79,167.74,6.41576687]
[1730424637675,6.41576687,167.8,167.74,6.41576687]
[1730424637876,6.41576687,167.79,167.74,6.41576687]
[1730424638771,2.9843,167.77,167.74,6.41576687]
[1730424638973,2.9843,167.77,167.73,7.77676687]
[1730424639173,6.41576687,167.79,167.73,7.77676687]
[1730424639377,2.9843,167.77,167.73,7.77676687]
[1730424640270,2.9841,167.78,167.74,2.9848]
[1730424641476,2.9841,167.78,167.74,9.40056687]
[1730424643573,6.41576687,167.75,167.67,6.41576687]
[1730424643778,2.8,167.79,167.67,6.41576687]
[1730424643779,6.41576687,167.74,167.67,6.41576687]
[1730424644083,6.41576687,167.74,167.68,6.41576687]
[1730424644990,2.9848,167.74,167.7,2.9854]
[1730424645176,7.76476687,167.78,167.73,6.41576687]
[1730424645483,6.41576687,167.8,167.73,6.41576687]
[1730424645677,6.41576687,167.8,167.73,9.21576687]
[1730424645880,6.41576687,167.8,167.75,2.9846]
[1730424646079,6.41576687,167.8,167.73,9.21576687]
[1730424646678,9.39996687,167.78,167.73,12.20066687]
[1730424647282,6.41576687,167.78,167.71,11.81696687]
[1730424648186,2.9844,167.77,167.72,2.9851]
[1730424650289,6.41576687,167.78,167.72,2.9851]
[1730424650290,2.9845,167.76,167.72,2.9851]
[1730424651585,2.9847,167.75,167.71,12.20096687]
[1730424651784,6.41576687,167.77,167.7,6.41576687]
[1730424652080,6.41576687,167.75,167.7,6.41576687]
[1730424652279,2.985,167.73,167.7,6.41576687]
[1730424652688,6.41576687,167.75,167.7,6.41576687]
[1730424653883,2.9848,167.74,167.7,9.40116687]
[1730424654291,6.41576687,167.75,167.7,6.41576687]
[1730424654886,2.9853,167.72,167.7,6.41576687]
[1730424655384,2.9853,167.71,167.7,6.41576687]
[1730424655775,6.41576687,167.75,167.7,6.41576687]
[1730424656988,2.9853,167.72,167.68,9.40156687]
[1730424661288,6.41576687,167.75,167.7,6.41576687]
[1730424661473,6.41576687,167.75,167.71,6.41576687]
[1730424661474,2.9847,167.75,167.71,6.41576687]
[1730424661682,6.41576687,167.77,167.71,6.41576687]
[1730424661985,2.9846,167.76,167.71,6.41576687]
[1730424662488,2.9847,167.75,167.71,9.40106687]
[1730424664094,6.41576687,167.75,167.68,6.41576687]
[1730424664685,6.41576687,167.7,167.65,6.41576687]
[1730424665091,2.9857,167.7,167.66,2.9862]
[1730424665293,6.41576687,167.72,167.65,6.41576687]
[1730424665684,6.41576687,167.72,167.66,6.41576687]
[1730424665886,6.41576687,167.73,167.68,6.41576687]
[1730424666191,2.9853,167.72,167.68,9.40156687]
[1730424666586,1.2983,167.74,167.68,9.40156687]
[1730424666885,2.985,167.73,167.7,6.41576687]
[1730424667293,2.985,167.73,167.68,9.40156687]
[1730424667688,6.41576687,167.75,167.68,9.40156687]
[1730424667891,2.9852,167.72,167.68,9.40156687]
[1730424668292,2.9853,167.71,167.67,2.986]
[1730424668795,2.9853,167.71,167.66,9.40186687]
[1730424669192,6.41576687,167.73,167.66,6.41576687]
[1730424669383,2.9,167.76,167.65,2.9]
[1730424669384,2.9859,167.68,167.65,6.41576687]
[1730424670196,9.31576687,167.72,167.65,6.41576687]
[1730424670796,2.9857,167.69,167.65,6.41576687]
[1730424671306,9.31576687,167.72,167.65,6.41576687]
[1730424671498,2.9859,167.68,167.65,6.41576687]
[1730424671891,9.31576687,167.72,167.65,6.41576687]
[1730424672188,2.9855,167.7,167.66,6.41576687]
[1730424672783,2.9853,167.72,167.68,6.41576687]
[1730424672988,6.41576687,167.73,167.68,6.41576687]
[1730424673192,2.9856,167.7,167.66,6.41576687]
[1730424673388,6.41576687,167.71,167.65,6.41576687]
[1730424673791,2.9859,167.68,167.65,6.41576687]
[1730424674284,2.986,167.68,167.63,9.40246687]
[1730424674489,9.41576687,167.64,167.54,9.79585291]
[1730424674698,6.41576687,167.56,167.5,6.41576687]
[1730424675093,6.41576687,167.57,167.5,6.41576687]
[1730424675298,9.40446687,167.53,167.47,2.9896]
[1730424675591,6.41576687,167.57,167.5,6.41576687]
[1730424675787,6.41576687,167.53,167.48,6.41576687]
[1730424675989,9.31576687,167.53,167.46,6.41576687]
[1730424676397,6.41576687,167.52,167.46,6.41576687]
[1730424676696,6.41576687,167.52,167.44,9.40586687]
[1730424677200,6.41576687,167.5,167.43,6.41576687]
[1730424677600,6.41576687,167.48,167.43,6.41576687]
[1730424677794,6.41576687,167.48,167.42,33.23270343]
[1730424678302,6.41576687,167.47,167.42,33.23270343]
[1730424678502,2.9,167.49,167.42,33.23270343]
[1730424678808,2.9896,167.48,167.42,33.23270343]
[1730424678996,2.9,167.49,167.42,33.23270343]
[1730424679400,2.9898,167.46,167.42,33.23270343]
[1730424679603,2.9,167.49,167.42,33.23270343]
[1730424680091,2.9898,167.47,167.42,33.23270343]
[1730424680291,2.9,167.49,167.42,33.23270343]
[1730424680806,2.9897,167.47,167.42,33.23270343]
[1730424681696,2.9,167.49,167.42,33.23270343]
[1730424681697,5.8894,167.49,167.42,33.23270343]
[1730424681897,1.3798,167.5,167.42,43.29259201]
[1730424682101,2.9,167.5,167.42,43.29259201]
[1730424682403,12.95988858,167.5,167.42,33.23270343]
[1730424682701,2.9892,167.49,167.42,33.23270343]
[1730424682893,12.95988858,167.5,167.42,33.23270343]
[1730424683604,2.9896,167.47,167.42,33.23270343]
[1730424683904,12.95988858,167.5,167.4,13.00546187]
[1730424684097,2.9892,167.49,167.42,2.9904]
[1730424684396,2.9892,167.49,167.4,13.00546187]
[1730424684397,12.95988858,167.5,167.4,13.00546187]
[1730424685299,10.05988858,167.47,167.4,15.99626187]
[1730424685503,10.05988858,167.47,167.4,13.00546187]
[1730424685693,2.9901,167.45,167.4,13.00546187]
[1730424685888,10.05988858,167.47,167.4,13.00546187]
[1730424687096,2.99,167.45,167.4,13.00546187]
[1730424687297,10.05988858,167.47,167.4,13.00546187]
[1730424687698,2.99,167.45,167.4,15.99626187]
[1730424687899,6.13,167.45,167.4,13.00546187]
[1730424688402,6.13,167.45,167.4,15.99616187]
[1730424688403,3.14,167.45,167.4,15.99616187]
[1730424689003,3.14,167.45,167.43,2.9902]
[1730424689200,3.14,167.46,167.4,13.00546187]
[1730424689394,1.304,167.49,167.4,13.00546187]
[1730424689395,3.14,167.47,167.4,13.00546187]
[1730424689796,3.14,167.47,167.42,2.9903]
[1730424690402,3.14,167.47,167.4,13.00546187]
[1730424690705,13.19988858,167.47,167.4,13.00546187]
[1730424690905,3.14,167.47,167.4,13.00546187]
[1730424691094,10.05988858,167.43,167.4,13.00546187]
[1730424691493,6.1307,167.42,167.4,13.00546187]
[1730424691904,3.14,167.42,167.4,13.00546187]
[1730424692211,3.14,167.42,167.4,6.79376187]
[1730424692212,2.9907,167.41,167.4,6.79376187]
[1730424692415,3.14,167.42,167.29,10.05988858]
[1730424692703,13.05108858,167.39,167.33,2.992]
[1730424692909,13.05108858,167.39,167.29,10.05988858]
[1730424693302,10.05988858,167.39,167.35,2.9917]
[1730424693497,10.05988858,167.41,167.29,10.05988858]
[1730424693906,2.9909,167.4,167.35,2.9917]
[1730424694304,10.05988858,167.41,167.35,2.9917]
[1730424694507,13.05068858,167.41,167.35,2.9917]
[1730424694810,10.05988858,167.41,167.35,2.9917]
[1730424695011,16.19058858,167.41,167.35,2.9917]
[1730424695606,16.19058858,167.41,167.33,2.9919]
[1730424695607,2.9912,167.39,167.33,2.9919]
[1730424695799,13.19988858,167.41,167.29,10.05988858]
[1730424696210,10.05988858,167.39,167.27,3.9034]
[1730424697006,3.14,167.39,167.29,10.05988858]
[1730424697205,3.14,167.39,167.29,13.19988858]
[1730424698112,3.14,167.39,167.37,2.9914]
[1730424698706,3.14,167.39,167.38,2.9912]
[1730424699010,3.14,167.39,167.29,13.19988858]
[1730424699508,10.05988858,167.41,167.29,13.19988858]
[1730424700108,10.05988858,167.41,167.19,60.99]
[1730424700109,3.0,167.36,167.09,5.971]
[1730424700311,60.99,167.4,167.17,11.40818858]
[1730424700312,10.05988858,167.31,167.17,11.40818858]
[1730424700608,3.74,167.3,167.17,11.40818858]
[1730424700814,10.05988858,167.31,167.17,11.40818858]
[1730424701005,2.9928,167.29,167.17,11.40818858]
[1730424701211,10.05988858,167.28,167.17,1.3483]
[1730424701722,2.9933,167.27,167.2,2.9942]
[1730424702022,10.05988858,167.28,167.17,1.3483]
[1730424702211,3.74,167.27,167.17,1.3483]
[1730424702816,3.74,167.27,167.21,2.9941]
[1730424703010,3.74,167.27,167.22,1.2556]
[1730424703317,6.7333,167.27,167.22,1.2556]
[1730424704322,3.74,167.27,167.17,1.3483]
[1730424704513,3.74,167.27,167.18,1.3881]
[1730424705519,3.74,167.26,167.21,2.9942]
[1730424706024,3.74,167.27,167.18,1.3881]
[1730424706515,13.79988858,167.3,167.18,1.3881]
[1730424707124,16.79258858,167.3,167.18,1.3881]
[1730424707614,10.05988858,167.28,167.18,1.3881]
[1730424708022,10.05988858,167.28,167.24,2.9937]
[1730424709120,10.05988858,167.28,167.18,1.3881]
[1730424709318,10.05988858,167.26,167.18,1.3881]
[1730424709928,2.9935,167.25,167.19,2.9944]
[1730424710111,10.05988858,167.26,167.19,2.9944]
[1730424710428,13.05388858,167.23,167.18,1.3881]
[1730424710622,16.79388858,167.23,167.18,1.3881]
[1730424711022,16.79388858,167.23,167.18,4.3828]
[1730424711023,13.79988858,167.23,167.18,4.3828]
[1730424711326,13.79988858,167.23,167.18,1.3881]
[1730424711528,10.05988858,167.2,167.12,1.3158]
[1730424711729,10.05988858,167.15,167.12,1.3158]
[1730424712025,10.05988858,167.15,167.04,2.5796]
[1730424712216,10.05988858,167.05,166.96,13.40082791]
[1730424712418,13.05748858,167.03,166.96,13.40082791]
[1730424712616,10.05988858,167.0,166.96,13.40082791]
[1730424713019,10.05988858,167.02,166.96,13.40082791]
[1730424713328,10.05988858,166.97,166.8,10.05988858]
[1730424713522,10.05988858,166.99,166.89,1.3183]
[1730424713825,4.3,167.08,166.9,4.3]
[1730424713826,10.05988858,167.02,166.9,4.3]
[1730424714028,10.05988858,167.02,166.91,1.3808]
[1730424714327,4.3,167.08,166.91,4.3804]
[1730424714328,10.05988858,166.99,166.91,4.3804]
[1730424714518,16.13929249,167.02,166.91,4.3804]
[1730424714724,16.13929249,167.05,166.92,4.3]
[1730424714923,72.11430156,167.08,166.92,4.3]
[1730424714924,67.81430156,167.08,166.92,5.6779]
[1730424715223,70.81090156,167.08,166.99,2.9981]
[1730424715525,67.81430156,167.08,167.0,2.635]
[1730424715923,67.81430156,167.08,167.0,5.6329]
[1730424716323,67.81430156,167.08,167.01,2.9977]
[1730424716525,4.3,167.13,167.0,2.635]
[1730424716921,4.3,167.13,167.04,2.9972]
[1730424717319,4.3,167.17,167.0,2.635]
[1730424717521,38.84859694,167.29,167.01,1.3734]
[1730424717728,4.3,167.19,167.01,1.3734]
[1730424717919,2.9962,167.1,167.01,8.6711]
[1730424718117,4.3,167.19,167.01,5.6734]
[1730424718327,16.13929249,167.17,167.01,5.6734]
[1730424718931,2.9953,167.16,167.06,2.9969]
[1730424719125,16.13929249,167.17,167.07,4.58]
[1730424719322,16.13929249,167.17,167.08,2.6959]
[1730424719524,2.9956,167.14,167.08,2.6959]
[1730424720727,2.9958,167.13,167.08,2.6959]
[1730424721124,16.13929249,167.17,167.08,1.34]
[1730424721537,2.9956,167.14,167.08,1.34]
[1730424721831,16.13929249,167.17,167.08,1.34]
[1730424723530,2.9962,167.11,167.08,1.34]
[1730424723731,16.13929249,167.2,167.08,1.34]
[1730424723930,16.13929249,167.2,167.09,1.2524]
[1730424724133,67.75939792,167.22,167.09,1.2524]
[1730424724333,16.13929249,167.26,167.1,1.2593]
[1730424724925,16.13929249,167.23,167.1,1.2593]
[1730424725626,16.13929249,167.23,167.11,4.58]
[1730424725830,16.13929249,167.23,167.12,2.9958]
[1730424726133,16.13929249,167.23,167.11,4.58]
[1730424726330,2.9944,167.21,167.11,7.576]
[1730424726532,16.13929249,167.23,167.12,4.58]
[1730424728439,16.13929249,167.26,167.12,4.58]
[1730424728626,16.13929249,167.29,167.12,4.58]
[1730424728832,2.9937,167.25,167.16,2.995]
[1730424729035,2.9937,167.25,167.17,2.6473]
[1730424729235,16.13929249,167.29,167.17,2.6473]
[1730424729430,2.9937,167.25,167.18,1.2529]
[1730424729937,4.58,167.29,167.18,1.2529]
[1730424730231,83.86084579,167.32,167.18,4.2477]
[1730424730439,83.86084579,167.32,167.18,1.2529]
[1730424730637,2.9931,167.28,167.18,1.2529]
[1730424730842,83.86084579,167.32,167.21,2.9942]
[1730424731038,83.86084579,167.32,167.21,4.58]
[1730424731426,67.7215533,167.32,167.23,2.9938]
[1730424732232,2.9926,167.31,167.23,2.9938]
[1730424732432,67.7215533,167.32,167.24,2.9937]
[1730424732628,16.13929249,167.38,167.23,16.13929249]
[1730424732838,2.9916,167.36,167.23,16.13929249]
[1730424733037,2.9916,167.36,167.28,2.9929]
[1730424733238,16.13929249,167.38,167.29,8.4089]
[1730424733439,16.13929249,167.38,167.3,4.58]
[1730424733638,20.71929249,167.42,167.3,4.58]
[1730424733836,16.13929249,167.42,167.3,4.58]
[1730424734747,2.9914,167.37,167.3,7.5726]
[1730424734933,16.13929249,167.42,167.3,7.5726]
[1730424734934,16.13929249,167.42,167.3,4.58]
[1730424735239,2.9914,167.37,167.3,7.5726]
[1730424736543,43.12,167.51,167.3,20.71929249]
[1730424736544,16.13929249,167.45,167.3,20.71929249]
[1730424737636,16.13929249,167.45,167.3,16.13929249]
[1730424737837,16.13929249,167.45,167.31,4.58]
[1730424738347,2.9909,167.4,167.33,2.992]
[1730424739143,2.9909,167.4,167.31,4.58]
[1730424739144,2.9909,167.4,167.34,2.9919]
[1730424740238,2.9909,167.4,167.31,4.58]
[1730424740438,2.9909,167.4,167.33,2.9921]
[1730424740845,2.9909,167.4,167.34,4.58]
[1730424741547,2.9909,167.4,167.34,7.5719]
[1730424742555,2.9907,167.41,167.35,2.9917]
[1730424742841,43.12,167.51,167.34,4.58]
[1730424742842,16.13929249,167.51,167.34,4.58]
[1730424743145,2.9904,167.43,167.38,2.991]
[1730424743444,16.13929249,167.51,167.39,3.9514]
[1730424743641,2.9908,167.41,167.39,3.9514]
[1730424743841,16.13929249,167.51,167.39,8.5114]
[1730424744942,16.13929249,167.51,167.39,11.5024]
[1730424745142,16.13929249,167.51,167.39,8.5114]
[1730424745352,2.9902,167.44,167.39,8.5114]
[1730424745645,16.13929249,167.46,167.29,16.13929249]